[Event "DVM U12w 2024"]
[Site "Bad Homburg"]
[Date "2024.12.29"]
[Round "6"]
[White "Glotz, Katharina"]
[Black "Lange, Lene Marie"]
[Result "1-0"]
[ECO "C42"]
[WhiteElo "1656"]
[BlackElo "1501"]
[Annotator "NA RC"]
[PlyCount "61"]
[EventDate "2024.12.23"]
[EventType "team-tourn"]
[EventRounds "7"]
[EventCountry "GER"]
[SourceTitle "playchess.com"]
[Source "ChessBase"]
[SourceQuality "1"]
[TimeControl "40/5400+30:1800+30"]

1. e4 {[%emt 0:00:01]} e5 {[%emt 0:00:09]} 2. Nf3 {[%emt 0:00:10]} Nf6 {[%emt 0:00:09]} 3. Nxe5 {[%emt 0:00:20]} d6 {[%emt 0:00:08]} 4. Nf3 {[%emt 0:00:23]} Nxe4 {[%emt 0:00:31]} 5. c4 {[%emt 0:00:14]} Be6 {[%emt 0:01:39]} 6. d4 {[%emt 0:02:26]} Qe7 {[%emt 0:03:52]} 7. Be3 {[%emt 0:02:20]} g6 {[%emt 0:04:20]} 8. Bd3 {[%emt 0:02:40]} f5 {[%emt 0:04:25]} 9. O-O {[%emt 0:03:42]} Nd7 {[%emt 0:03:17]} 10. Nbd2 {[%emt 0:02:46]} Nef6 {[%emt 0:02:11]} 11. Rb1 {[%emt 0:02:40]} Bg7 {[%emt 0:10:52]} 12. Re1 {[%emt 0:03:01]} O-O {[%emt 0:05:49]} 13. a3 {[%emt 0:04:12]} a6 {[%emt 0:04:10]} 14. d5 {[%emt 0:07:35]} Bf7 {[%emt 0:04:32]} 15. Bf4 {[%emt 0:21:31]} Qd8 {[%emt 0:16:02]} 16. Nb3 {[%emt 0:09:03]} Re8 {[%emt 0:02:16]} 17. Be2 {[%emt 0:03:13]} b5 {[%emt 0:01:39]} 18. Qd2 {[%emt 0:10:37]} bxc4 {[%emt 0:03:45]} 19. Bxc4 {[%emt 0:00:10]} Nb6 {[%emt 0:01:20]} 20. Rxe8+ {[%emt 0:02:10]} Nxe8 {[%emt 0:01:34]} 21. Bd3 {[%emt 0:00:49]} Bxd5 {[%emt 0:00:42]} 22. Nbd4 {[%emt 0:01:29]} Bxf3 {[%emt 0:00:39]} 23. Nxf3 {[%emt 0:00:19]} Nd5 {[%emt 0:03:30]} 24. Bc4 {[%emt 0:01:09]} c6 {[%emt 0:03:13]} 25. Nd4 {[%emt 0:03:08]} Bxd4 {[%emt 0:04:41]} 26. Qxd4 {[%emt 0:00:11]} Nec7 {[%emt 0:03:57]} 27. Re1 {[%emt 0:05:39]} Qd7 {[%emt 0:01:21]} 28. Bh6 {[%emt 0:00:45]} Rb8 {[%emt 0:03:11]} 29. Qf6 {[%emt 0:00:53]} Qf7 {[%emt 0:02:32]} 30. Qxd6 {[%emt 0:00:14]} Rxb2 {[%emt 0:00:44]} 31. Qd8+ {[%emt 0:00:12]} 1-0

[Event "DVM U12w 2024"]
[Site "Bad Homburg"]
[Date "2024.12.29"]
[Round "6"]
[White "Noennig, Lotte"]
[Black "Frydel, Helena"]
[Result "0-1"]
[ECO "B89"]
[WhiteElo "1635"]
[BlackElo "1514"]
[Annotator "NA RC"]
[PlyCount "96"]
[EventDate "2024.12.23"]
[EventType "team-tourn"]
[EventRounds "7"]
[EventCountry "GER"]
[SourceTitle "playchess.com"]
[Source "ChessBase"]
[SourceQuality "1"]
[TimeControl "40/5400+30:1800+30"]

1. e4 {[%emt 0:00:03]} c5 {[%emt 0:00:05]} 2. Nf3 {[%emt 0:00:13]} d6 {[%emt 0:00:04]} 3. d4 {[%emt 0:00:19]} cxd4 {[%emt 0:00:15]} 4. Nxd4 {[%emt 0:00:11]} Nf6 {[%emt 0:00:06]} 5. Nc3 {[%emt 0:00:36]} Nc6 {[%emt 0:00:09]} 6. Be3 {[%emt 0:00:51]} Bd7 {[%emt 0:00:32]} 7. Bc4 {[%emt 0:00:42]} e6 {[%emt 0:00:56]} 8. Qd2 {[%emt 0:08:07]} Nxe4 {[%emt 0:08:53]} 9. Nxe4 {[%emt 0:00:44]} d5 {[%emt 0:00:10]} 10. Bxd5 {[%emt 0:00:49]} exd5 {[%emt 0:00:06]} 11. Nc3 {[%emt 0:01:04]} Bb4 {[%emt 0:02:32]} 12. O-O {[%emt 0:03:45]} O-O {[%emt 0:00:14]} 13. a3 {[%emt 0:03:15]} Bxc3 {[%emt 0:00:28]} 14. Qxc3 {[%emt 0:00:47]} h6 {[%emt 0:05:48]} 15. Rad1 {[%emt 0:04:16]} Rc8 {[%emt 0:06:06]} 16. Qb3 {[%emt 0:02:06]} Nxd4 {[%emt 0:02:53]} 17. Bxd4 {[%emt 0:00:28]} Bc6 {[%emt 0:00:48]} 18. Bxa7 {[%emt 0:02:54]} Qf6 {[%emt 0:03:32]} 19. Bd4 {[%emt 0:02:16]} Qg6 {[%emt 0:00:23]} 20. Rd3 {[%emt 0:02:45]} f6 {[%emt 0:01:55]} 21. h3 {[%emt 0:06:08]} Qe8 {[%emt 0:00:38]} 22. Re3 {[%emt 0:03:46]} Qg6 {[%emt 0:02:29]} 23. Rfe1 {[%emt 0:01:51]} Rfe8 {[%emt 0:00:56]} 24. c3 {[%emt 0:11:14]} Rxe3 {[%emt 0:02:50]} 25. Rxe3 {[%emt 0:04:11]} Qb1+ {[%emt 0:11:09]} 26. Kh2 {[%emt 0:00:40]} Kf7 {[%emt 0:04:15]} 27. c4 {[%emt 0:12:07]} Qf5 {[%emt 0:07:04]} 28. cxd5 {[%emt 0:11:43]} Bxd5 {[%emt 0:00:17]} 29. Qd1 {[%emt 0:02:26]} Rc2 {[%emt 0:02:58]} 30. Rd3 {[%emt 0:03:48]} Qf4+ {[%emt 0:02:38]} 31. Kg1 {[%emt 0:02:10]} Rc1 {[%emt 0:00:46]} 32. Be3 {[%emt 0:03:42]} Rxd1+ {[%emt 0:00:11]} 33. Rxd1 {[%emt 0:00:15]} Qe4 {[%emt 0:00:26]} 34. Kf1 {[%emt 0:01:49]} Qxg2+ {[%emt 0:00:06]} 35. Ke1 {[%emt 0:00:13]} Qh1+ {[%emt 0:00:03]} 36. Kd2 {[%emt 0:00:21]} Qxh3 {[%emt 0:01:08]} 37. Rc1 {[%emt 0:02:08]} Qd7 {[%emt 0:02:07]} 38. Ke1 {[%emt 0:01:19]} g5 {[%emt 0:05:05]} 39. b4 {[%emt 0:01:21]} h5 {[%emt 0:03:30]} 40. Rb1 {[%emt 0:01:46]} Be4 {[%emt 0:01:09]} 41. Rd1 {[%emt 0:30:52]} Qa4 {[%emt 0:32:55]} 42. Ra1 {[%emt 0:00:00]} g4 {[%emt 0:00:00]} 43. Ke2 {[%emt 0:00:00]} Qb5+ {[%emt 0:00:00]} 44. Ke1 {[%emt 0:00:00]} Bf3 {[%emt 0:00:00]} 45. Ra2 {[%emt 0:00:00]} Qc4 {[%emt 0:00:00]} 46. Rb2 {[%emt 0:00:00]} Qc3+ {[%emt 0:00:00]} 47. Rd2 {[%emt 0:00:00]} Qc1+ {[%emt 0:00:00]} 48. Rd1 {[%emt 0:00:00]} Qxd1# {[%emt 0:00:00]} 0-1

[Event "DVM U12w 2024"]
[Site "Bad Homburg"]
[Date "2024.12.29"]
[Round "6"]
[White "Bayer, Klara"]
[Black "Mersmann, Jasmin"]
[Result "1-0"]
[ECO "D61"]
[WhiteElo "1618"]
[BlackElo "1527"]
[Annotator "NA RC"]
[PlyCount "131"]
[EventDate "2024.12.23"]
[EventType "team-tourn"]
[EventRounds "7"]
[EventCountry "GER"]
[SourceTitle "playchess.com"]
[Source "ChessBase"]
[SourceQuality "1"]
[TimeControl "40/5400+30:1800+30"]

1. d4 {[%emt 0:00:03]} d5 {[%emt 0:00:03]} 2. c4 {[%emt 0:00:23]} e6 {[%emt 0:00:12]} 3. Nc3 {[%emt 0:00:07]} Nf6 {[%emt 0:00:10]} 4. Bg5 {[%emt 0:00:06]} Be7 {[%emt 0:00:11]} 5. e3 {[%emt 0:00:41]} O-O {[%emt 0:00:32]} 6. Nf3 {[%emt 0:00:05]} Nbd7 {[%emt 0:00:30]} 7. Qc2 {[%emt 0:01:33]} h6 {[%emt 0:00:28]} 8. Bf4 {[%emt 0:00:12]} a6 {[%emt 0:01:13]} 9. c5 {[%emt 0:00:34]} Nh5 {[%emt 0:01:37]} 10. Be5 {[%emt 0:00:27]} Nxe5 {[%emt 0:04:51]} 11. Nxe5 {[%emt 0:00:20]} Nf6 {[%emt 0:03:54]} 12. Bd3 {[%emt 0:00:21]} Nd7 {[%emt 0:01:15]} 13. Nxd7 {[%emt 0:02:14]} Bxd7 {[%emt 0:00:29]} 14. O-O {[%emt 0:00:09]} b6 {[%emt 0:01:32]} 15. b4 {[%emt 0:01:49]} b5 {[%emt 0:01:25]} 16. a4 {[%emt 0:04:49]} c6 {[%emt 0:00:55]} 17. Kh1 {[%emt 0:05:06]} Kh8 {[%emt 0:01:31]} 18. a5 {[%emt 0:01:11]} Bf6 {[%emt 0:03:27]} 19. Ne2 {[%emt 0:01:52]} e5 {[%emt 0:01:19]} 20. f3 {[%emt 0:00:06]} Qc7 {[%emt 0:01:44]} 21. Qb2 {[%emt 0:05:01]} Rae8 {[%emt 0:00:41]} 22. Nc3 {[%emt 0:06:43]} exd4 {[%emt 0:01:30]} 23. exd4 {[%emt 0:00:06]} Re3 {[%emt 0:02:11]} 24. Rad1 {[%emt 0:00:25]} Rfe8 {[%emt 0:07:23]} 25. Bb1 {[%emt 0:09:09]} Qf4 {[%emt 0:04:08]} 26. Qd2 {[%emt 0:02:48]} Qc7 {[%emt 0:01:12]} 27. Ba2 {[%emt 0:03:16]} Qb7 {[%emt 0:02:47]} 28. Qc2 {[%emt 0:02:39]} g6 {[%emt 0:01:32]} 29. Qc1 {[%emt 0:01:22]} Kg7 {[%emt 0:02:59]} 30. Bb1 {[%emt 0:02:26]} Qc8 {[%emt 0:02:01]} 31. Ba2 {[%emt 0:03:32]} Qb7 {[%emt 0:00:40]} 32. Rd2 {[%emt 0:01:31]} Bg5 {[%emt 0:04:37]} 33. f4 {[%emt 0:00:56]} Bxf4 {[%emt 0:06:34]} 34. Rdf2 {[%emt 0:00:48]} Rf3 {[%emt 0:03:00]} 35. Qb2 {[%emt 0:02:43]} Rxf2 {[%emt 0:06:43]} 36. Qxf2 {[%emt 0:00:52]} Bb8 {[%emt 0:03:51]} 37. Qxf7+ {[%emt 0:00:40]} Kh8 {[%emt 0:00:13]} 38. Qxg6 {[%emt 0:00:18]} Qc8 {[%emt 0:03:15]} 39. Qxh6+ {[%emt 0:02:49]} Kg8 {[%emt 0:00:14]} 40. Kg1 {[%emt 0:01:24]} Rf8 {[%emt 0:03:08]} 41. Nxd5 {[%emt 0:38:42]} Rxf1+ {[%emt 0:33:04]} 42. Kxf1 {[%emt 0:00:06]} Qf8+ {[%emt 0:01:03]} 43. Qxf8+ {[%emt 0:00:07]} Kxf8 {[%emt 0:00:10]} 44. Nb6 {[%emt 0:00:14]} Bf5 {[%emt 0:01:10]} 45. h3 {[%emt 0:00:39]} Ke8 {[%emt 0:02:03]} 46. d5 {[%emt 0:00:41]} cxd5 {[%emt 0:00:41]} 47. Bxd5 {[%emt 0:00:11]} Be5 {[%emt 0:01:36]} 48. g4 {[%emt 0:00:52]} Bd3+ {[%emt 0:00:26]} 49. Kf2 {[%emt 0:00:06]} Bc3 {[%emt 0:00:35]} 50. Bc6+ {[%emt 0:00:08]} Kd8 {[%emt 0:00:54]} 51. Nd5 {[%emt 0:00:24]} Bd2 {[%emt 0:00:24]} 52. Kf3 {[%emt 0:00:06]} Bc4 {[%emt 0:00:24]} 53. Ke4 {[%emt 0:00:29]} Bxd5+ {[%emt 0:02:00]} 54. Kxd5 {[%emt 0:00:20]} Kc7 {[%emt 0:00:50]} 55. Be8 {[%emt 0:06:30]} Bxb4 {[%emt 0:00:55]} 56. g5 {[%emt 0:00:09]} Bxa5 {[%emt 0:00:48]} 57. g6 {[%emt 0:00:03]} Bc3 {[%emt 0:00:10]} 58. h4 {[%emt 0:00:07]} b4 {[%emt 0:00:16]} 59. Kc4 {[%emt 0:00:07]} Kd8 {[%emt 0:01:45]} 60. Ba4 {[%emt 0:00:11]} Ke7 {[%emt 0:02:31]} 61. h5 {[%emt 0:01:36]} Kf6 {[%emt 0:01:26]} 62. Be8 {[%emt 0:00:46]} a5 {[%emt 0:03:57]} 63. c6 {[%emt 0:00:25]} Be5 {[%emt 0:00:24]} 64. h6 {[%emt 0:00:09]} Ke7 {[%emt 0:00:42]} 65. g7 {[%emt 0:00:23]} Bxg7 {[%emt 0:00:20]} 66. hxg7 {[%emt 0:00:06]} 1-0

[Event "DVM U12w 2024"]
[Site "Bad Homburg"]
[Date "2024.12.29"]
[Round "6"]
[White "Hendler, Felicitas"]
[Black "Busch, Lara Sophie"]
[Result "0-1"]
[ECO "C36"]
[WhiteElo "1610"]
[BlackElo "1625"]
[Annotator "NA RC"]
[PlyCount "69"]
[EventDate "2024.12.23"]
[EventType "team-tourn"]
[EventRounds "7"]
[EventCountry "GER"]
[SourceTitle "playchess.com"]
[Source "ChessBase"]
[SourceQuality "1"]
[TimeControl "40/5400+30:1800+30"]

1. e4 {[%emt 0:00:22]} e5 {[%emt 0:00:06]} 2. f4 {[%emt 0:00:25]} d5 {[%emt 0:00:16]} 3. exd5 {[%emt 0:01:04]} exf4 {[%emt 0:00:22]} 4. Nf3 {[%emt 0:00:52]} Nf6 {[%emt 0:01:28]} 5. Nc3 {[%emt 0:08:25]} Nxd5 {[%emt 0:02:39]} 6. Nxd5 {[%emt 0:00:19]} Qxd5 {[%emt 0:00:25]} 7. d4 {[%emt 0:00:38]} Bd6 {[%emt 0:03:29]} 8. c4 {[%emt 0:01:24]} Qe4+ {[%emt 0:06:21]} 9. Be2 {[%emt 0:00:56]} Bb4+ {[%emt 0:00:46]} 10. Bd2 {[%emt 0:00:31]} Bxd2+ {[%emt 0:01:41]} 11. Qxd2 {[%emt 0:00:06]} O-O {[%emt 0:01:45]} 12. O-O {[%emt 0:00:26]} Qe3+ {[%emt 0:12:37]} 13. Kh1 {[%emt 0:06:47]} Bg4 {[%emt 0:02:51]} 14. Qd3 {[%emt 0:03:08]} Bxf3 {[%emt 0:10:47]} 15. Rxf3 {[%emt 0:00:20]} Qxd3 {[%emt 0:00:17]} 16. Bxd3 {[%emt 0:00:58]} g5 {[%emt 0:01:31]} 17. h4 {[%emt 0:00:51]} f6 {[%emt 0:00:46]} 18. Be4 {[%emt 0:02:19]} Nc6 {[%emt 0:01:58]} 19. Bxc6 {[%emt 0:00:40]} bxc6 {[%emt 0:00:02]} 20. g3 {[%emt 0:00:30]} Rad8 {[%emt 0:04:20]} 21. Rd1 {[%emt 0:00:25]} fxg3 {[%emt 0:00:51]} 22. Rxg3 {[%emt 0:00:15]} h6 {[%emt 0:00:29]} 23. d5 {[%emt 0:00:31]} Rd6 {[%emt 0:01:30]} 24. Kh2 {[%emt 0:01:28]} Re8 {[%emt 0:02:12]} 25. Rg2 {[%emt 0:00:16]} Kf7 {[%emt 0:01:25]} 26. hxg5 {[%emt 0:01:14]} hxg5 {[%emt 0:00:50]} 27. Kh3 {[%emt 0:00:35]} Re3+ {[%emt 0:01:23]} 28. Kg4 {[%emt 0:00:18]} Re4+ {[%emt 0:00:55]} 29. Kh3 {[%emt 0:00:27]} Rxc4 {[%emt 0:01:23]} 30. Rgd2 {[%emt 0:00:19]} cxd5 {[%emt 0:00:47]} 31. Rxd5 {[%emt 0:00:16]} Ke6 {[%emt 0:05:34]} 32. Rxd6+ {[%emt 0:00:26]} cxd6 {[%emt 0:00:05]} 33. Re1+ {[%emt 0:00:09]} Kf5 {[%emt 0:01:08]} 34. Rf1+ {[%emt 0:00:00]} Rf4 {[%emt 0:00:40]} 35. Ra1 {[%emt 0:01:24]} 0-1

[Event "DVM U12w 2024"]
[Site "Bad Homburg"]
[Date "2024.12.29"]
[Round "6"]
[White "Sobczak, Zuzanna"]
[Black "Xu, Dorothea Sicheng"]
[Result "1-0"]
[ECO "C55"]
[WhiteElo "1598"]
[BlackElo "1585"]
[Annotator "NA RC"]
[PlyCount "129"]
[EventDate "2024.12.23"]
[EventType "team-tourn"]
[EventRounds "7"]
[EventCountry "GER"]
[SourceTitle "playchess.com"]
[Source "ChessBase"]
[SourceQuality "1"]
[TimeControl "40/5400+30:1800+30"]

1. e4 {[%emt 0:00:01]} e5 {[%emt 0:00:04]} 2. Nf3 {[%emt 0:00:06]} Nc6 {[%emt 0:00:05]} 3. Bc4 {[%emt 0:00:04]} Nf6 {[%emt 0:00:05]} 4. Nc3 {[%emt 0:00:07]} Nxe4 {[%emt 0:00:18]} 5. Nxe4 {[%emt 0:00:12]} d5 {[%emt 0:00:04]} 6. Bd3 {[%emt 0:00:06]} dxe4 {[%emt 0:00:06]} 7. Bxe4 {[%emt 0:00:07]} Bd6 {[%emt 0:00:55]} 8. d3 {[%emt 0:03:57]} h6 {[%emt 0:01:19]} 9. h3 {[%emt 0:00:10]} Be6 {[%emt 0:01:08]} 10. Qe2 {[%emt 0:00:28]} Qe7 {[%emt 0:04:00]} 11. Bxc6+ {[%emt 0:01:07]} bxc6 {[%emt 0:00:26]} 12. Nxe5 {[%emt 0:00:12]} Bxe5 {[%emt 0:04:08]} 13. Qxe5 {[%emt 0:00:09]} O-O {[%emt 0:00:24]} 14. O-O {[%emt 0:00:31]} Rfd8 {[%emt 0:01:49]} 15. Qg3 {[%emt 0:01:56]} Qf6 {[%emt 0:01:52]} 16. Bf4 {[%emt 0:00:15]} Rd5 {[%emt 0:02:25]} 17. Rfe1 {[%emt 0:01:22]} Rb8 {[%emt 0:05:45]} 18. Bxc7 {[%emt 0:00:11]} Rb7 {[%emt 0:01:09]} 19. Be5 {[%emt 0:00:07]} Qg5 {[%emt 0:01:29]} 20. Qxg5 {[%emt 0:00:26]} hxg5 {[%emt 0:00:11]} 21. Bc3 {[%emt 0:00:33]} g4 {[%emt 0:06:57]} 22. hxg4 {[%emt 0:00:27]} Bxg4 {[%emt 0:01:12]} 23. Re8+ {[%emt 0:00:02]} Kh7 {[%emt 0:00:09]} 24. f3 {[%emt 0:00:16]} Be6 {[%emt 0:02:08]} 25. Kf2 {[%emt 0:01:02]} Rh5 {[%emt 0:02:51]} 26. Ra8 {[%emt 0:00:41]} Rc7 {[%emt 0:04:13]} 27. Re1 {[%emt 0:00:34]} c5 {[%emt 0:05:11]} 28. Re5 {[%emt 0:01:17]} Rxe5 {[%emt 0:00:40]} 29. Bxe5 {[%emt 0:00:08]} Rd7 {[%emt 0:00:07]} 30. Rc8 {[%emt 0:00:17]} Bxa2 {[%emt 0:03:43]} 31. Rxc5 {[%emt 0:00:51]} Be6 {[%emt 0:02:01]} 32. Ra5 {[%emt 0:00:49]} Rb7 {[%emt 0:04:42]} 33. Bd4 {[%emt 0:00:45]} Rb4 {[%emt 0:03:07]} 34. Ke3 {[%emt 0:01:04]} Kg8 {[%emt 0:04:07]} 35. Rxa7 {[%emt 0:00:21]} Rb8 {[%emt 0:01:02]} 36. c4 {[%emt 0:00:20]} Kf8 {[%emt 0:01:56]} 37. Bc5+ {[%emt 0:00:23]} Ke8 {[%emt 0:01:33]} 38. b4 {[%emt 0:00:15]} Kd8 {[%emt 0:01:05]} 39. b5 {[%emt 0:00:18]} g6 {[%emt 0:00:39]} 40. b6 {[%emt 0:00:09]} Bc8 {[%emt 0:00:26]} 41. Bd6 {[%emt 0:31:00]} Rb7 {[%emt 0:31:45]} 42. Rxb7 {[%emt 0:00:08]} Bxb7 {[%emt 0:00:09]} 43. Bc7+ {[%emt 0:00:11]} Kd7 {[%emt 0:00:43]} 44. d4 {[%emt 0:00:11]} Kc6 {[%emt 0:01:49]} 45. Ke4 {[%emt 0:00:36]} f6 {[%emt 0:02:05]} 46. c5 {[%emt 0:00:50]} Kd7+ {[%emt 0:00:15]} 47. d5 {[%emt 0:00:12]} Kc8 {[%emt 0:01:13]} 48. c6 {[%emt 0:00:19]} Ba6 {[%emt 0:01:12]} 49. Bd6 {[%emt 0:00:30]} f5+ {[%emt 0:00:53]} 50. Ke5 {[%emt 0:00:06]} f4 {[%emt 0:02:22]} 51. b7+ {[%emt 0:00:09]} Bxb7 {[%emt 0:00:11]} 52. cxb7+ {[%emt 0:00:08]} Kxb7 {[%emt 0:00:03]} 53. Be7 {[%emt 0:00:20]} Kc7 {[%emt 0:00:19]} 54. Ke6 {[%emt 0:00:11]} Kb6 {[%emt 0:00:24]} 55. d6 {[%emt 0:00:14]} Kc5 {[%emt 0:00:24]} 56. d7+ {[%emt 0:00:06]} Kd4 {[%emt 0:00:24]} 57. d8=Q+ {[%emt 0:00:08]} Ke3 {[%emt 0:00:11]} 58. Bc5+ {[%emt 0:00:15]} Ke2 {[%emt 0:00:12]} 59. Qd4 {[%emt 0:00:19]} g5 {[%emt 0:00:42]} 60. Bb4 {[%emt 0:00:22]} Kf1 {[%emt 0:00:32]} 61. Qd2 {[%emt 0:00:48]} Kg1 {[%emt 0:00:27]} 62. Kf5 {[%emt 0:03:22]} Kh1 {[%emt 0:00:56]} 63. Kg4 {[%emt 0:00:11]} Kh2 {[%emt 0:00:22]} 64. g3+ {[%emt 0:00:20]} Kg1 {[%emt 0:00:22]} 65. Bc5+ {[%emt 0:00:19]} 1-0

[Event "DVM U12w 2024"]
[Site "Bad Homburg"]
[Date "2024.12.29"]
[Round "6"]
[White "Wolf, Helena"]
[Black "Suryaprakash, Smrithi"]
[Result "1-0"]
[ECO "B92"]
[WhiteElo "1582"]
[BlackElo "1527"]
[Annotator "NA RC"]
[PlyCount "80"]
[EventDate "2024.12.23"]
[EventType "team-tourn"]
[EventRounds "7"]
[EventCountry "GER"]
[SourceTitle "playchess.com"]
[Source "ChessBase"]
[SourceQuality "1"]
[TimeControl "40/5400+30:1800+30"]

1. e4 {[%emt 0:00:02]} c5 {[%emt 0:00:26]} 2. Nf3 {[%emt 0:00:06]} d6 {[%emt 0:00:07]} 3. d4 {[%emt 0:00:06]} cxd4 {[%emt 0:00:04]} 4. Nxd4 {[%emt 0:00:08]} Nf6 {[%emt 0:00:15]} 5. Nc3 {[%emt 0:00:07]} a6 {[%emt 0:00:05]} 6. Be3 {[%emt 0:00:53]} e5 {[%emt 0:00:19]} 7. Nb3 {[%emt 0:00:16]} Be6 {[%emt 0:00:10]} 8. f3 {[%emt 0:01:13]} Nbd7 {[%emt 0:00:25]} 9. Be2 {[%emt 0:02:25]} Be7 {[%emt 0:01:39]} 10. O-O {[%emt 0:00:21]} O-O {[%emt 0:00:22]} 11. Qd2 {[%emt 0:08:17]} Qc7 {[%emt 0:03:55]} 12. Rac1 {[%emt 0:04:10]} Nc5 {[%emt 0:04:53]} 13. Rfd1 {[%emt 0:06:48]} Rfd8 {[%emt 0:03:27]} 14. Qe1 {[%emt 0:09:05]} d5 {[%emt 0:02:50]} 15. exd5 {[%emt 0:00:17]} Bxd5 {[%emt 0:01:53]} 16. Qf2 {[%emt 0:00:42]} Rac8 {[%emt 0:07:08]} 17. Nxd5 {[%emt 0:05:25]} Nxd5 {[%emt 0:01:32]} 18. Bxc5 {[%emt 0:00:20]} Bxc5 {[%emt 0:00:11]} 19. Nxc5 {[%emt 0:00:08]} Qxc5 {[%emt 0:01:18]} 20. Qxc5 {[%emt 0:00:05]} Rxc5 {[%emt 0:00:09]} 21. c4 {[%emt 0:00:09]} Rdc8 {[%emt 0:00:16]} 22. b3 {[%emt 0:01:54]} g6 {[%emt 0:05:28]} 23. Rd2 {[%emt 0:02:51]} f5 {[%emt 0:06:47]} 24. a3 {[%emt 0:21:22]} Nf4 {[%emt 0:08:08]} 25. Bf1 {[%emt 0:01:44]} e4 {[%emt 0:03:29]} 26. fxe4 {[%emt 0:07:56]} fxe4 {[%emt 0:00:24]} 27. Rd4 {[%emt 0:02:00]} Re5 {[%emt 0:04:42]} 28. Re1 {[%emt 0:02:00]} Rce8 {[%emt 0:01:53]} 29. Re3 {[%emt 0:01:27]} R8e7 {[%emt 0:06:23]} 30. g3 {[%emt 0:01:53]} Nh5 {[%emt 0:00:51]} 31. Bg2 {[%emt 0:00:27]} Nf6 {[%emt 0:00:43]} 32. h3 {[%emt 0:06:46]} Kf7 {[%emt 0:06:36]} 33. Kf2 Rf5+ {[%emt 0:03:08]} 34. Kg1 {[%emt 0:03:37]} Rfe5 {[%emt 0:04:53]} 35. Kf2 {[%emt 0:00:10]} h5 {[%emt 0:00:46]} 36. Kg1 {[%emt 0:04:33]} g5 {[%emt 0:01:08]} 37. Kf2 {[%emt 0:01:14]} Kg6 {[%emt 0:02:12]} 38. Kg1 {[%emt 0:01:18]} Kf5 {[%emt 0:00:39]} 39. Kf2 {[%emt 0:00:15]} h4 {[%emt 0:00:40]} 40. g4+ {[%emt 0:03:20]} Kf4 {[%emt 0:00:13]} 1-0

[Event "DVM U12w 2024"]
[Site "Bad Homburg"]
[Date "2024.12.29"]
[Round "6"]
[White "Brandt, Hilda"]
[Black "Zietz, Leni"]
[Result "0-1"]
[ECO "D00"]
[WhiteElo "1556"]
[BlackElo "1071"]
[Annotator "NA RC"]
[PlyCount "55"]
[EventDate "2024.12.23"]
[EventType "team-tourn"]
[EventRounds "7"]
[EventCountry "GER"]
[SourceTitle "playchess.com"]
[Source "ChessBase"]
[SourceQuality "1"]
[TimeControl "40/5400+30:1800+30"]

1. d4 {[%emt 0:00:05]} d5 {[%emt 0:00:07]} 2. Nc3 {[%emt 0:00:11]} Nf6 {[%emt 0:00:07]} 3. Bf4 {[%emt 0:00:12]} Bd7 {[%emt 0:00:58]} 4. e3 {[%emt 0:01:08]} e6 {[%emt 0:00:20]} 5. Nf3 {[%emt 0:00:21]} Bb4 {[%emt 0:00:20]} 6. Ne5 {[%emt 0:01:00]} Ne4 {[%emt 0:00:14]} 7. Qd3 {[%emt 0:03:05]} O-O {[%emt 0:01:36]} 8. f3 {[%emt 0:01:07]} Nxc3 {[%emt 0:00:37]} 9. bxc3 {[%emt 0:00:14]} Bd6 {[%emt 0:00:47]} 10. c4 {[%emt 0:02:25]} Nc6 {[%emt 0:01:50]} 11. Be2 {[%emt 0:07:57]} Nb4 {[%emt 0:01:58]} 12. Qb3 {[%emt 0:02:42]} Qe8 {[%emt 0:00:32]} 13. c5 {[%emt 0:01:22]} Bxe5 {[%emt 0:01:11]} 14. Bxe5 {[%emt 0:00:57]} Nc6 {[%emt 0:01:01]} 15. Bxc7 {[%emt 0:00:32]} Qc8 {[%emt 0:00:45]} 16. Bd6 {[%emt 0:01:23]} Re8 {[%emt 0:00:34]} 17. Rb1 {[%emt 0:00:44]} Na5 {[%emt 0:04:24]} 18. Qb2 {[%emt 0:02:39]} Qd8 {[%emt 0:00:52]} 19. O-O {[%emt 0:02:52]} Qg5 {[%emt 0:00:52]} 20. e4 {[%emt 0:00:56]} Qe3+ {[%emt 0:00:57]} 21. Rf2 {[%emt 0:00:51]} dxe4 {[%emt 0:00:56]} 22. Bc7 {[%emt 0:00:33]} Nc6 {[%emt 0:00:42]} 23. Qxb7 {[%emt 0:00:25]} Nxd4 {[%emt 0:00:34]} 24. Kf1 {[%emt 0:01:37]} Bc6 {[%emt 0:01:47]} 25. Qa6 {[%emt 0:04:35]} exf3 {[%emt 0:01:09]} 26. gxf3 {[%emt 0:00:27]} Bxf3 {[%emt 0:00:29]} 27. Bxf3 {[%emt 0:00:46]} Nxf3 {[%emt 0:00:22]} 28. Qc6 {[%emt 0:01:11]} 0-1

[Event "DVM U12w 2024"]
[Site "Bad Homburg"]
[Date "2024.12.29"]
[Round "6"]
[White "Winkler, Frida"]
[Black "Fruth, Julia"]
[Result "1-0"]
[ECO "B07"]
[WhiteElo "1555"]
[BlackElo "1614"]
[Annotator "NA RC"]
[PlyCount "77"]
[EventDate "2024.12.23"]
[EventType "team-tourn"]
[EventRounds "7"]
[EventCountry "GER"]
[SourceTitle "playchess.com"]
[Source "ChessBase"]
[SourceQuality "1"]
[TimeControl "40/5400+30:1800+30"]

1. d4 {[%emt 0:00:02]} Nf6 {[%emt 0:00:12]} 2. Bf4 {[%emt 0:00:10]} g6 {[%emt 0:00:42]} 3. Nc3 {[%emt 0:00:17]} Bg7 {[%emt 0:00:43]} 4. e4 {[%emt 0:00:24]} d6 {[%emt 0:00:11]} 5. Qd2 {[%emt 0:00:13]} Nbd7 {[%emt 0:00:45]} 6. O-O-O {[%emt 0:01:00]} O-O {[%emt 0:00:46]} 7. e5 {[%emt 0:00:30]} Ne8 {[%emt 0:01:49]} 8. Bh6 {[%emt 0:05:50]} b6 {[%emt 0:02:50]} 9. Bxg7 {[%emt 0:01:12]} Kxg7 {[%emt 0:00:35]} 10. g4 {[%emt 0:00:37]} Bb7 {[%emt 0:01:16]} 11. f3 {[%emt 0:00:22]} a5 {[%emt 0:01:44]} 12. h4 {[%emt 0:02:42]} a4 {[%emt 0:01:23]} 13. a3 {[%emt 0:00:48]} c5 {[%emt 0:00:44]} 14. dxc5 {[%emt 0:01:11]} bxc5 {[%emt 0:00:47]} 15. exd6 {[%emt 0:01:14]} exd6 {[%emt 0:00:39]} 16. h5 {[%emt 0:00:52]} Nef6 {[%emt 0:01:13]} 17. hxg6 {[%emt 0:03:47]} Nxg4 {[%emt 0:08:53]} 18. Rxh7+ {[%emt 0:00:21]} Kxg6 {[%emt 0:01:54]} 19. Bd3+ {[%emt 0:00:15]} f5 {[%emt 0:01:00]} 20. fxg4 {[%emt 0:01:26]} Kxh7 {[%emt 0:00:56]} 21. Bxf5+ {[%emt 0:00:13]} Kg7 {[%emt 0:01:25]} 22. Qxd6 {[%emt 0:01:43]} Qg5+ {[%emt 0:03:40]} 23. Kb1 {[%emt 0:00:34]} Nf6 {[%emt 0:05:30]} 24. Qxc5 {[%emt 0:01:29]} Nxg4 {[%emt 0:01:43]} 25. Rd7+ {[%emt 0:02:18]} Rf7 {[%emt 0:03:18]} 26. Rxf7+ {[%emt 0:00:13]} Kxf7 {[%emt 0:00:13]} 27. Qc4+ {[%emt 0:02:34]} Kf6 {[%emt 0:01:49]} 28. Bxg4 {[%emt 0:00:57]} Rg8 {[%emt 0:01:03]} 29. Qe6+ {[%emt 0:00:41]} Kg7 {[%emt 0:00:25]} 30. Nh3 {[%emt 0:01:32]} Qf6 {[%emt 0:02:38]} 31. Qd7+ {[%emt 0:02:37]} Qf7 {[%emt 0:00:12]} 32. Qxa4 {[%emt 0:00:43]} Qf1+ {[%emt 0:00:28]} 33. Ka2 {[%emt 0:02:34]} Qf7+ {[%emt 0:01:51]} 34. b3 {[%emt 0:00:20]} Qg6 {[%emt 0:01:07]} 35. Bd1 {[%emt 0:01:55]} Qg3 {[%emt 0:01:34]} 36. Qd7+ {[%emt 0:01:14]} Kh8 {[%emt 0:00:31]} 37. Qd4+ {[%emt 0:01:44]} Kh7 {[%emt 0:05:36]} 38. Nf2 {[%emt 0:02:30]} Rc8 {[%emt 0:01:44]} 39. Nfe4 {[%emt 0:01:08]} 1-0